fUST/lending_fUST_20250826
["ID","MTS","AMOUNT","RATE_DAILY","PERIOD"]
[381362155,1756152655394,-887.77,0.00041095,30]
[381362156,1756152655405,-480.0,0.00041095,30]
[381362157,1756152655414,-480.0,0.00041095,30]
[381362158,1756152655425,-15921.47,0.00041095,30]
[381362159,1756152655435,-1255.61,0.00041095,30]
[381362160,1756152655445,-480.0,0.00041095,7]
[381362161,1756152655455,-1144.85,0.00041095,30]
[381362162,1756152655464,-2226.8,0.00041095,30]
[381362163,1756152655474,-726.77,0.00041095,30]
[381362164,1756152655484,-480.0,0.00041095,30]
[381362165,1756152655494,-3220.12,0.00041095,30]
[381362166,1756152655503,-655.09,0.00041095,30]
[381362167,1756152655513,-480.0,0.00041095,30]
[381362168,1756152655523,-480.0,0.00041095,30]
[381362169,1756152655534,-480.0,0.00041095,30]
[381362170,1756152655546,-13388.24,0.00041095,30]
[381362171,1756152655556,-480.0,0.00041095,30]
[381362172,1756152655566,-480.0,0.00041095,30]
[381362173,1756152655576,-487.66,0.00041095,30]
[381362174,1756152655587,-480.0,0.00041095,30]
[381362175,1756152655597,-480.0,0.00041095,30]
[381362176,1756152655607,-480.0,0.00041095,30]
[381362177,1756152655618,-790.62,0.00041095,30]
[381362178,1756152655628,-480.0,0.00041095,30]
[381362179,1756152655638,-480.0,0.00041095,30]
[381362180,1756152655649,-480.0,0.00041095,30]
[381362181,1756152655661,-1658.87,0.00041095,30]
[381362182,1756152655671,-11748.39,0.00041095,30]
[381362183,1756152655681,-1257.49,0.00041095,30]
[381362184,1756152655691,-3046.4,0.00041095,30]
[381362185,1756152655702,-480.0,0.00041095,30]
[381362186,1756152655713,-1210.06,0.00041095,30]
[381362187,1756152655723,-480.0,0.00041095,30]
[381362188,1756152655733,-480.0,0.00041095,30]
[381362189,1756152655743,-2430.0,0.00041095,30]
[381362190,1756152655753,-480.0,0.00041095,30]
[381362191,1756152655764,-1086.9,0.00041095,30]
[381362192,1756152655776,-480.0,0.00041095,7]
[381362193,1756152655787,-480.0,0.00041095,30]
[381362194,1756152655802,-669.15,0.00041095,30]
[381362195,1756152655814,-1656.47,0.00041095,30]
[381362196,1756152655825,-792.75,0.00041095,30]
[381362197,1756152655837,-480.0,0.00041095,30]
[381362198,1756152655848,-480.0,0.00041095,30]
[381362199,1756152655859,-480.0,0.00041095,30]
[381362200,1756152655870,-480.0,0.00041095,30]
[381362201,1756152655882,-557.41,0.00041095,30]
[381362202,1756152655893,-480.0,0.00041095,30]
[381362203,1756152655904,-1221.06,0.00041095,30]
[381362204,1756152655915,-480.0,0.00041095,30]
[381362205,1756152655926,-1644.63,0.00041095,30]
[381362206,1756152655936,-968.72,0.00041095,30]
[381362207,1756152655947,-527.03,0.00041095,30]
[381362208,1756152655957,-2690.75,0.00041095,30]
[381362209,1756152655968,-786.63,0.00041095,30]
[381362210,1756152655978,-480.0,0.00041095,30]
[381362211,1756152655988,-480.0,0.00041095,30]
[381362212,1756152655999,-480.0,0.00041095,30]
[381362213,1756152656009,-480.0,0.00041095,30]
[381362214,1756152656019,-1297.17,0.00041095,30]
[381362215,1756152656029,-613.53,0.00041095,30]
[381362216,1756152656042,-1908.81,0.00041095,30]
[381362217,1756152656052,-480.0,0.00041095,30]
[381362218,1756152656062,-480.0,0.00041095,30]
[381362219,1756152656072,-587.41244561,0.00041095,30]
[381362220,1756152656082,-484.33,0.00041095,30]
[381362221,1756152656092,-480.0,0.00041095,30]
[381362222,1756152656103,-697.21,0.00041095,30]
[381362223,1756152656113,-916.21,0.00041095,30]
[381362224,1756152656123,-505.07,0.00041095,30]
[381362225,1756152656133,-480.0,0.00041095,30]
[381362226,1756152656144,-480.0,0.00041095,30]
[381362227,1756152656153,-4775.8,0.00041095,30]
[381362228,1756152656163,-1181.13,0.00041095,30]
[381362229,1756152656174,-2313.91,0.00041095,30]
[381362230,1756152656184,-480.0,0.00041095,30]
[381362231,1756152656195,-480.0,0.00041095,30]
[381362232,1756152656205,-480.0,0.00041095,30]
[381362233,1756152656215,-739.6,0.00041095,30]
[381362234,1756152656225,-1206.55,0.00041095,30]
[381362235,1756152656234,-480.0,0.00041095,30]
[381362236,1756152656244,-480.0,0.00041095,30]
[381362237,1756152656254,-480.0,0.00041095,30]
[381362238,1756152656264,-480.0,0.00041095,30]
[381362239,1756152656274,-480.0,0.00041095,30]
[381362240,1756152656284,-480.0,0.00041095,30]
[381362241,1756152656296,-480.0,0.00041095,30]
[381362242,1756152656305,-480.0,0.00041095,30]
[381362243,1756152656314,-480.0,0.00041095,30]
[381362244,1756152656324,-2095.15,0.00041095,30]
[381362245,1756152656333,-480.0,0.00041095,30]
[381362246,1756152656345,-503.41120945,0.00041095,30]
[381362247,1756152656355,-480.0,0.00041095,30]
[381362248,1756152656366,-480.0,0.00041095,30]
[381362249,1756152656375,-480.0,0.00041095,30]
[381362250,1756152656386,-2410.18,0.00041095,30]
[381362251,1756152656395,-480.0,0.00041095,30]
[381362252,1756152656405,-1117.53,0.00041095,30]
[381362253,1756152656415,-998.51,0.00041095,30]
[381362254,1756152656424,-480.0,0.00041095,30]
[381362255,1756152656436,-480.0,0.00041095,30]
[381362256,1756152656446,-480.0,0.00041095,30]
[381362257,1756152656455,-711.39,0.00041095,30]
[381362258,1756152656465,-480.0,0.00041095,30]
[381362259,1756152656475,-480.0,0.00041095,30]
[381362260,1756152656485,-480.0,0.00041095,30]
[381362261,1756152656495,-480.0,0.00041095,30]
[381362262,1756152656505,-534.54,0.00041095,30]
[381362263,1756152656516,-589.287844,0.00041095,30]
[381362264,1756152656526,-3482.34,0.00041095,30]
[381362265,1756152656535,-1577.12,0.00041095,120]
[381362266,1756152656548,-520.0,0.00041095,30]
[381362267,1756152656558,-480.0,0.00041095,30]
[381362268,1756152656569,-480.0,0.00041095,30]
[381362269,1756152656579,-673.78,0.00041095,30]
[381362270,1756152656589,-480.64807542,0.00041095,30]
[381362271,1756152656599,-480.0,0.00041095,30]
[381362272,1756152656609,-1742.33,0.00041095,30]
[381362273,1756152656618,-1277.59,0.00041095,30]
[381362274,1756152656628,-480.0,0.00041095,30]
[381362275,1756152656639,-480.0,0.00041095,30]
[381362276,1756152656649,-480.0,0.00041095,30]
[381362277,1756152656660,-480.0,0.00041095,30]
[381362278,1756152656670,-490.89,0.00041095,30]
[381362279,1756152656682,-926.42,0.00041095,30]
[381362280,1756152656693,-480.0,0.00041095,30]
[381362281,1756152656703,-480.0,0.00041095,30]
[381362282,1756152656713,-2529.28,0.00041095,30]
[381362283,1756152656723,-1002.26,0.00041095,30]
[381362284,1756152656734,-480.0,0.00041095,30]
[381362285,1756152656744,-480.0,0.00041095,30]
[381362286,1756152656754,-492.52,0.00041095,30]
[381362287,1756152656764,-163.33694101,0.00041095,30]
[381362288,1756152656774,-480.0,0.00041095,30]
[381362289,1756152656784,-480.0,0.00041095,30]
[381362290,1756152656796,-811.68,0.00041095,30]
[381362291,1756152656806,-480.0,0.00041095,30]
[381362292,1756152656815,-2240.92,0.00041095,30]
[381362293,1756152656825,-29893.81,0.00041095,30]
[381362294,1756152656835,-1678.6,0.00041095,30]
[381362295,1756152656845,-480.0,0.00041095,30]
[381362296,1756152656854,-6090.66,0.00041095,30]
[381362297,1756152656865,-654.73,0.00041095,30]
[381362298,1756152656875,-1072.59,0.00041095,30]
[381362299,1756152656885,-1065.0,0.00041095,30]
[381362300,1756152656895,-1531.43,0.00041095,30]
[381362301,1756152656905,-480.0,0.00041095,30]
[381362302,1756152656916,-480.0,0.00041095,30]
[381362303,1756152656927,-1181.61,0.00041095,30]
[381362304,1756152656936,-480.0,0.00041095,30]
[381362305,1756152656946,-480.0,0.00041095,30]
[381362306,1756152656956,-480.0,0.00041095,30]
[381362307,1756152656966,-3382.82,0.00041095,30]
[381362308,1756152656976,-480.0,0.00041095,30]
[381362309,1756152656986,-3203.83,0.00041095,30]
[381362310,1756152656996,-748.34,0.00041095,30]
[381362311,1756152657007,-480.0,0.00041095,30]
[381362312,1756152657016,-1740.42,0.00041095,30]
[381362313,1756152657026,-480.0,0.00041095,30]
[381362314,1756152657036,-480.0,0.00041095,30]
[381362315,1756152657048,-1140.06,0.00041095,30]
[381362316,1756152657058,-480.0,0.00041095,30]
[381362317,1756152657068,-480.0,0.00041095,30]
[381362318,1756152657078,-422.56440753,0.00041095,30]
[381362319,1756152657088,-634.2,0.00041095,30]
[381362320,1756152657099,-414.06298926,0.00041095,30]
[381362321,1756152657109,-4563.09,0.00041095,30]
[381362322,1756152657120,-1277.76,0.00041095,30]
[381362323,1756152657130,-413.07584189,0.00041095,30]
[381362324,1756152657140,-2993.87,0.00041095,30]
[381362325,1756152657150,-480.0,0.00041095,30]
[381362326,1756152657160,-1615.58,0.00041095,30]
[381362327,1756152657170,-480.0,0.00041095,30]
[381362328,1756152657180,-480.0,0.00041095,30]
[381362329,1756152657189,-480.0,0.00041095,30]
[381362330,1756152657199,-364.39120802,0.00041095,30]
[381362331,1756152657208,-1318.52,0.00041095,30]
[381362332,1756152657218,-734.17,0.00041095,30]
[381362333,1756152657228,-480.0,0.00041095,30]
[381362334,1756152657239,-480.0,0.00041095,30]
[381362335,1756152657411,-1769.01,0.00041095,30]
[381362336,1756152657421,-1427.43,0.00041095,30]
[381362337,1756152657433,-604.56,0.00041095,30]
[381362338,1756152657442,-1028.15,0.00041095,30]
[381362339,1756152657451,-480.0,0.00041095,30]
[381362340,1756152657460,-480.0,0.00041095,30]
[381362341,1756152657469,-480.0,0.00041095,30]
[381362342,1756152657478,-2281.29,0.00041095,30]
[381362343,1756152657487,-1139.08,0.00041095,30]
[381362344,1756152657497,-1052.5,0.00041095,30]
[381362345,1756152657506,-3147.79,0.00041095,30]
[381362346,1756152657516,-480.0,0.00041095,30]
[381362347,1756152657525,-489.54,0.00041095,30]
[381362348,1756152657534,-480.0,0.00041095,30]
[381362349,1756152657546,-480.0,0.00041095,30]
[381362350,1756152657555,-480.0,0.00041095,30]
[381362351,1756152657564,-480.0,0.00041095,30]
[381362352,1756152657574,-3174.02,0.00041095,30]
[381362353,1756152657584,-1170.68,0.00041095,30]
[381362354,1756152657594,-480.0,0.00041095,30]
[381362355,1756152657604,-1084.19,0.00041095,30]
[381362356,1756152657614,-480.0,0.00041095,30]
[381362357,1756152657623,-1837.05,0.00041095,30]
[381362358,1756152657633,-480.0,0.00041095,30]
[381362359,1756152657642,-480.0,0.00041095,30]
[381362360,1756152657652,-480.0,0.00041095,30]
[381362361,1756152657661,-480.0,0.00041095,30]
[381362362,1756152657671,-576.97,0.00041095,30]
[381362363,1756152657681,-480.0,0.00041095,30]
[381362364,1756152657691,-480.0,0.00041095,30]
[381362365,1756152657700,-480.0,0.00041095,30]
[381362366,1756152657711,-480.0,0.00041095,30]
[381362367,1756152657720,-480.0,0.00041095,30]
[381362368,1756152657732,-1330.77,0.00041095,30]
[381362369,1756152657742,-480.0,0.00041095,30]
[381362370,1756152657751,-2001.95,0.00041095,30]
[381362371,1756152657761,-480.0,0.00041095,30]
[381362372,1756152657771,-17323.5,0.00041095,30]
[381362373,1756152657780,-685.61,0.00041095,30]
[381362374,1756152657794,-480.0,0.00041095,30]
[381362375,1756152657804,-480.0,0.00041095,30]
[381362376,1756152657814,-791.88,0.00041095,30]
[381362377,1756152657824,-480.0,0.00041095,30]
[381362378,1756152657834,-1978.85,0.00041095,30]
[381362379,1756152657845,-792.1,0.00041095,30]
[381362380,1756152657855,-5394.57,0.00041095,30]
[381362381,1756152657866,-1102.0,0.00041095,30]
[381362382,1756152657876,-480.0,0.00041095,30]
[381362383,1756152657888,-480.0,0.00041095,30]
[381362384,1756152657898,-10006.12,0.00041095,30]
[381362385,1756152657908,-480.0,0.00041095,30]
[381362386,1756152657918,-480.0,0.00041095,30]
[381362387,1756152657927,-13535.37,0.00041095,30]
[381362388,1756152657937,-568.84344379,0.00041095,30]
[381362389,1756152657946,-663.97,0.00041095,30]
[381362390,1756152657956,-8831.22,0.00041095,3]
[381362391,1756152657965,-480.0,0.00041095,30]
[381362392,1756152657975,-1137.87,0.00041095,30]
[381362393,1756152657985,-480.0,0.00041095,30]
[381362394,1756152657995,-480.0,0.00041095,30]
[381362395,1756152658004,-480.0,0.00041095,7]
[381362396,1756152658014,-1124.42,0.00041095,30]
[381362397,1756152658024,-480.13199113,0.00041095,30]
[381362398,1756152658034,-463.53518473,0.00041095,30]
[381362399,1756152658047,-10077.69,0.00041095,30]
[381362400,1756152658056,-480.0,0.00041095,30]
[381362401,1756152658067,-480.0,0.00041095,30]
[381362402,1756152658076,-5227.18,0.00041095,30]
[381362403,1756152658086,-480.0,0.00041095,30]
[381362404,1756152658096,-2167.0,0.00041095,30]
[381362405,1756152658110,-4253.3,0.00041095,30]
[381362406,1756152658120,-1741.86,0.00041095,30]
[381362407,1756152658129,-11568.39,0.00041095,30]
[381362408,1756152658139,-480.45872622,0.00041095,30]
[381362409,1756152658148,-480.0,0.00041095,30]
[381362410,1756152658157,-3384.66,0.00041095,21]
[381362411,1756152658167,-1066.55,0.00041095,30]
[381362412,1756152658176,-742.25,0.00041095,30]
[381362413,1756152658185,-480.0,0.00041095,30]
[381362414,1756152658194,-480.0,0.00041095,30]
[381362415,1756152658203,-480.0,0.00041095,30]
[381362416,1756152658213,-7856.44,0.00041095,30]
[381362417,1756152658222,-831.65,0.00041095,30]
[381362418,1756152658232,-795.05,0.00041095,30]
[381362419,1756152658241,-480.0,0.00041095,30]
[381362420,1756152658252,-2253.25,0.00041095,30]
[381362421,1756152658262,-2802.11,0.00041095,30]
[381362422,1756152658271,-997.2,0.00041095,30]
[381362423,1756152658282,-151.0,0.00041095,2]
[381362424,1756152658293,-1089.43,0.00041095,30]
[381362425,1756152658302,-480.0,0.00041095,30]
[381362426,1756152658311,-515.24,0.00041095,30]
[381362427,1756152658320,-2898.09,0.00041095,30]
[381362428,1756152658329,-3943.45,0.00041095,30]
[381362429,1756152658339,-480.0,0.00041095,2]
[381362430,1756152658353,-562.97,0.00041095,30]
[381362431,1756152658363,-480.0,0.00041095,30]
[381362432,1756152658372,-480.0,0.00041095,30]
[381362433,1756152658382,-480.0,0.00041095,30]
[381362434,1756152658392,-480.0,0.00041095,30]
[381362435,1756152658402,-480.0,0.00041095,30]
[381362436,1756152658411,-4137.0,0.00041095,30]
[381362437,1756152658420,-480.0,0.00041095,30]
[381362438,1756152658430,-480.0,0.00041095,30]
[381362439,1756152658442,-917.21,0.00041095,30]
[381362440,1756152658452,-542.08118951,0.00041095,30]
[381362441,1756152658462,-759.19,0.00041095,30]
[381362442,1756152658471,-2523.79,0.00041095,30]
[381362443,1756152658481,-480.0,0.00041095,30]
[381362444,1756152658490,-9315.74,0.00041095,30]
[381362445,1756152658499,-500.0,0.00041096,31]
[381362446,1756152658508,-500.0,0.00041096,31]
[381362447,1756152658517,-500.0,0.00041096,31]
[381362448,1756152658527,-500.0,0.00041096,31]
[381362449,1756152658536,-500.0,0.00041096,31]
[381362450,1756152658547,-500.0,0.00041096,31]
[381362451,1756152658556,-500.0,0.00041096,31]
[381362452,1756152658565,-500.0,0.00041096,31]
[381362453,1756152658575,-206.75309355,0.00041096,31]
[381362454,1756152658584,-500.0,0.00041096,31]
[381362455,1756152658594,-500.0,0.00041096,31]
[381362456,1756152658603,-500.0,0.00041096,31]
[381362457,1756152658612,-500.0,0.00041096,31]
[381362458,1756152658621,-500.0,0.00041096,31]
[381362459,1756152658631,-500.0,0.00041096,31]
[381362460,1756152658642,-500.0,0.00041096,31]
[381362461,1756152658651,-500.0,0.00041096,31]
[381362462,1756152658661,-500.0,0.00041096,31]
[381362463,1756152658671,-500.0,0.00041096,31]
[381362464,1756152658681,-500.0,0.00041096,31]
[381362465,1756152658691,-500.0,0.00041096,31]
[381362466,1756152658701,-500.0,0.00041096,31]
[381362467,1756152658714,-19228.97,0.000411,14]
[381362468,1756152658732,-151.881479,0.000411,15]
[381362469,1756152658742,-644.3217,0.000411,30]
[381362470,1756152658752,-644.3217,0.000411,30]
[381362471,1756152658762,-2200.0,0.00041102,14]
[381362472,1756152658772,-546.654,0.00041102,30]
[381362473,1756152658782,-150.0,0.000412,10]
[381362474,1756152658791,-433.10077409,0.0004123,120]
[381362475,1756152658802,-500.0,0.00041292,30]
[381362476,1756152658812,-44578.13,0.000413,14]
[381362477,1756152658821,-208.0,0.0004136,30]
[381362478,1756152658830,-209.0,0.0004136,30]
[381362479,1756152658840,-208.0,0.0004136,30]
[381362480,1756152658850,-208.0,0.0004136,30]
[381362481,1756152658860,-480.0,0.00041369,30]
[381362482,1756152658869,-573.12,0.00041369,30]
[381362483,1756152658879,-480.0,0.00041369,30]
[381362484,1756152658889,-480.0,0.00041369,30]
[381362485,1756152658899,-480.0,0.00041369,30]
[381362486,1756152658909,-267.29844777,0.00041369,30]
[381362487,1756152658919,-480.0,0.00041369,30]
[381362488,1756152658929,-480.0,0.00041369,30]
[381362489,1756152658939,-480.0,0.00041369,30]
[381362490,1756152658949,-480.0,0.00041369,30]
[381362491,1756152658958,-480.0,0.00041369,30]
[381362492,1756152658968,-480.0,0.00041369,30]
[381362493,1756152658978,-480.0,0.00041369,30]
[381362494,1756152658988,-480.0,0.00041369,30]
[381362495,1756152658998,-717.02,0.00041369,30]
[381362496,1756152659008,-480.0,0.00041369,30]
[381362497,1756152659018,-480.0,0.00041369,30]
[381362498,1756152659027,-480.0,0.00041369,30]
[381362499,1756152659037,-1561.87,0.00041369,30]
[381362500,1756152659050,-480.0,0.00041369,30]
[381362501,1756152659059,-480.0,0.00041369,30]
[381362502,1756152659070,-480.0,0.00041369,30]
[381362503,1756152659079,-480.0,0.00041369,30]
[381362504,1756152659089,-480.0,0.00041369,30]
[381362505,1756152659099,-480.0,0.00041369,30]
[381362506,1756152659109,-480.0,0.00041369,30]
[381362507,1756152659119,-480.0,0.00041369,30]
[381362508,1756152659128,-480.0,0.00041369,30]
[381362509,1756152659138,-526.94,0.00041369,30]
[381362510,1756152659148,-480.0,0.00041369,30]
[381362511,1756152659157,-576.37,0.00041369,30]
[381362512,1756152659167,-1020.69,0.00041369,30]
[381362513,1756152659176,-480.0,0.00041369,30]
[381362514,1756152659186,-775.05,0.00041369,30]
[381362515,1756152659196,-1712.2,0.00041369,30]
[381362516,1756152659206,-920.01,0.00041369,30]
[381362517,1756152659215,-1000.0,0.00041369,30]
[381362518,1756152659225,-480.0,0.00041369,30]
[381362519,1756152659234,-524.57,0.00041369,30]
[381362520,1756152659243,-480.0,0.00041369,30]
[381362521,1756152659253,-480.0,0.00041369,30]
[381362522,1756152659263,-480.0,0.00041369,30]
[381362523,1756152659272,-480.0,0.00041369,30]
[381362524,1756152659282,-1376.9,0.00041369,30]
[381362525,1756152659293,-480.0,0.00041369,30]
[381362526,1756152659307,-480.0,0.00041369,30]
[381362527,1756152659316,-245.17916503,0.00041369,30]
[381362528,1756152659326,-480.0,0.00041369,30]
[381362529,1756152659336,-480.0,0.00041369,30]
[381362530,1756152659346,-480.0,0.00041369,30]
[381362531,1756152659356,-480.0,0.00041369,30]
[381362532,1756152659368,-496.04,0.00041369,30]
[381362533,1756152659377,-480.0,0.00041369,30]
[381362534,1756152659387,-480.0,0.00041369,30]
[381362535,1756152659396,-739.68,0.00041369,30]
[381362536,1756152659407,-480.0,0.00041369,30]
[381362537,1756152659417,-480.0,0.00041369,30]
[381362538,1756152659426,-480.0,0.00041369,30]
[381362539,1756152659437,-388.25986992,0.00041369,30]
[381362540,1756152659447,-480.0,0.00041369,30]
[381362541,1756152659456,-381.82892312,0.00041369,30]
[381362542,1756152659466,-480.0,0.00041369,30]
[381362543,1756152659476,-638.29,0.00041369,30]
[381362544,1756152659486,-480.0,0.00041369,30]
[381362545,1756152659495,-581.22,0.00041369,30]
[381362546,1756152659505,-560.02,0.00041369,30]
[381362547,1756152659514,-480.0,0.00041369,30]
[381362548,1756152659523,-480.0,0.00041369,30]
[381362549,1756152659533,-719.69,0.00041369,20]
[381362550,1756152659542,-645.17,0.00041369,30]
[381362551,1756152659555,-480.0,0.00041369,30]
[381362552,1756152659564,-480.0,0.00041369,30]
[381362553,1756152659573,-1206.79,0.00041369,30]
[381362554,1756152659583,-549.56,0.00041369,30]
[381362555,1756152659593,-480.0,0.00041369,30]
[381362556,1756152659604,-480.0,0.00041369,30]
[381362557,1756152659614,-480.0,0.00041369,30]
[381362558,1756152659624,-232.37528782,0.00041369,2]
[381362559,1756152659634,-480.0,0.00041369,30]
[381362560,1756152659644,-532.65,0.00041369,30]
[381362561,1756152659655,-877.31,0.00041369,30]
[381362562,1756152659665,-552.66,0.00041369,30]
[381362563,1756152659675,-480.0,0.00041369,30]
[381362564,1756152659686,-171.07048964,0.00041369,30]
[381362565,1756152659696,-480.0,0.00041369,30]
[381362566,1756152659706,-480.0,0.00041369,30]
[381362567,1756152659716,-480.0,0.00041369,30]
[381362568,1756152659726,-932.35,0.00041369,30]
[381362569,1756152659737,-1351.17,0.00041369,30]
[381362570,1756152659747,-480.0,0.00041369,30]
[381362571,1756152659757,-480.0,0.00041369,30]
[381362572,1756152659768,-480.0,0.00041369,30]
[381362573,1756152659778,-707.92,0.00041369,30]
[381362574,1756152659788,-480.0,0.00041369,30]
[381362575,1756152659805,-480.0,0.00041369,30]
[381362576,1756152659816,-480.0,0.00041369,30]
[381362577,1756152659826,-480.0,0.00041369,30]
[381362578,1756152659836,-1106.36,0.00041369,30]
[381362579,1756152659846,-480.0,0.00041369,30]
[381362580,1756152659856,-276.81,0.00041369,30]
[381362581,1756152659867,-480.0,0.00041369,30]
[381362582,1756152659878,-480.0,0.00041369,7]
[381362583,1756152659891,-480.0,0.00041369,30]
[381362584,1756152659904,-480.0,0.00041369,30]
[381362585,1756152659916,-480.0,0.00041369,30]
[381362586,1756152659927,-480.0,0.00041369,30]
[381362587,1756152659937,-403.25866423,0.00041369,30]
[381362588,1756152659949,-480.64118327,0.00041369,30]
[381362589,1756152659959,-480.0,0.00041369,30]
[381362590,1756152659970,-480.42890646,0.00041369,30]
[381362591,1756152659980,-495.6,0.00041369,30]
[381362592,1756152659990,-480.0,0.00041369,30]
[381362593,1756152659999,-480.0,0.00041369,30]
[381362594,1756152660009,-857.72,0.00041369,30]
[381362595,1756152660018,-480.0,0.00041369,30]
[381362596,1756152660027,-480.0,0.00041369,30]
[381362597,1756152660037,-480.0,0.00041369,30]
[381362598,1756152660051,-480.0,0.00041369,30]
[381362599,1756152660061,-674.65,0.00041369,7]
[381362600,1756152660071,-538.19,0.00041369,30]
[381362601,1756152660080,-946.55,0.00041369,30]
[381362602,1756152660090,-480.0,0.00041369,30]
[381362603,1756152660099,-480.0,0.00041369,30]
[381362604,1756152660108,-480.0,0.00041369,30]
[381362605,1756152660118,-480.0,0.00041369,30]
[381362606,1756152660127,-480.0,0.00041369,30]
[381362607,1756152660136,-480.0,0.00041369,30]
[381362608,1756152660146,-480.0,0.00041369,30]
[381362609,1756152660155,-480.0,0.00041369,30]
[381362610,1756152660166,-872.01,0.00041369,30]
[381362611,1756152660175,-1670.95,0.00041369,30]
[381362612,1756152660185,-480.0,0.00041369,30]
[381362613,1756152660194,-855.21,0.00041369,30]
[381362614,1756152660204,-480.0,0.00041369,30]
[381362615,1756152660213,-480.0,0.00041369,30]
[381362616,1756152660223,-327.13521663,0.00041369,30]
[381362617,1756152660233,-486.62,0.00041369,30]
[381362618,1756152660243,-480.0,0.00041369,30]
[381362619,1756152660252,-480.0,0.00041369,30]
[381362620,1756152660262,-930.32,0.00041369,30]
[381362621,1756152660273,-480.0,0.00041369,30]
[381362622,1756152660284,-480.0,0.00041369,30]
[381362623,1756152660298,-535.21328464,0.00041369,30]
[381362624,1756152660310,-480.0,0.00041369,30]
[381362625,1756152660320,-875.77,0.00041369,30]
[381362626,1756152660331,-480.0,0.00041369,30]
[381362627,1756152660342,-724.54,0.00041369,30]
[381362628,1756152660354,-493.58,0.00041369,30]
[381362629,1756152660367,-480.0,0.00041369,30]
[381362630,1756152660377,-480.0,0.00041369,30]
[381362631,1756152660390,-526.55,0.00041369,30]
[381362632,1756152660401,-498.82,0.00041369,30]
[381362633,1756152660411,-1014.9,0.00041369,30]
[381362634,1756152660422,-480.0,0.00041369,30]
[381362635,1756152660432,-714.61,0.00041369,30]
[381362636,1756152660442,-480.0,0.00041369,30]
[381362637,1756152660454,-1963.21,0.00041369,30]
[381362638,1756152660464,-237.87570783,0.00041369,30]
[381362639,1756152660475,-480.0,0.00041369,30]
[381362640,1756152660485,-480.0,0.00041369,30]
[381362641,1756152660495,-480.0,0.00041369,30]
[381362642,1756152660505,-577.0,0.00041369,30]
[381362643,1756152660515,-480.0,0.00041369,30]
[381362644,1756152660525,-480.0,0.00041369,30]
[381362645,1756152660535,-480.0,0.00041369,30]
[381362646,1756152660551,-480.0,0.00041369,30]
[381362647,1756152660561,-480.0,0.00041369,30]
[381362648,1756152660570,-480.0,0.00041369,30]
[381362649,1756152660582,-480.0,0.00041369,30]
[381362650,1756152660591,-619.39,0.00041369,30]
[381362651,1756152660602,-480.0,0.00041369,30]
[381362652,1756152660612,-2675.47,0.00041369,30]
[381362653,1756152660622,-480.0,0.00041369,30]
[381362654,1756152660632,-537.47,0.00041369,30]